lending/lending_fUSD_20240824
["ID","MTS","AMOUNT","RATE_DAILY","PERIOD"]
[335777673,1724487150754,150.0,0.00026807,120]
[335777674,1724487181264,840.0,9.897e-05,2]
[335777675,1724487209733,275.71,9.977e-05,2]
[335777676,1724487271044,150.0,0.00018207,120]
[335777677,1724487283161,325.33,9.897e-05,2]
[335777678,1724487286248,23900.0,9.897e-05,2]
[335777679,1724487306052,541.83,8.219e-05,2]
[335777680,1724487331302,150.0,0.00020416,120]
[335777681,1724487390807,150.0,0.00024505,120]
[335777682,1724487511475,150.0,0.00025886,120]
[335777684,1724487597029,357.34,9.899e-05,2]
[335777685,1724487630932,150.0,0.00026449,120]
[335777686,1724487698461,328.0,9.9e-05,2]
[335777687,1724487791457,562.88,8.219e-05,2]
[335777688,1724487823966,162.68,9.898e-05,2]
[335777689,1724487871100,150.0,0.00017585,120]
[335777690,1724487877400,23900.0,9.898e-05,2]
[335777692,1724487931274,150.0,0.00024011,120]
[335777693,1724487935160,726.22,9.899e-05,2]
[335777694,1724487945219,59921.62572376,0.00027,120]
[335777698,1724488009087,410.1,9.977e-05,2]
[335777700,1724488023864,150.0,9.888e-05,2]
[335777719,1724488050866,150.0,0.00022656,120]
[335777724,1724488070927,11304.25,9.891e-05,2]
[335777725,1724488076933,777.44,9.889e-05,2]
[335777726,1724488105694,299.14,9.889e-05,2]
[335777727,1724488111362,150.0,0.00022197,120]
[335777755,1724488187328,1994.19,9.889e-05,2]
[335777756,1724488203377,737.6,9.892e-05,2]
[335777760,1724488230260,317.28676016,0.00010009,2]
[335777761,1724488230706,150.0,0.00022085,120]
[335777771,1724488231639,-562.88,0.00010471,2]
[335777772,1724488231648,-252.11724662,0.00010471,2]
[335777773,1724488231660,-960.92161359,0.00010471,2]
[335777774,1724488231671,-482.77585744,0.00010471,2]
[335777775,1724488231682,-1706.98,0.00010471,2]
[335777776,1724488231755,-347.40099992,0.00010471,2]
[335777777,1724488231868,-1335.27392991,0.00010471,2]
[335777803,1724488237669,-611.78022026,0.00010404,2]
[335777804,1724488237679,-55.98450011,0.00010471,2]
[335777805,1724488237690,-326.82220256,0.00010471,2]
[335777806,1724488237700,-3212.85344129,0.00010471,2]
[335777807,1724488237711,-1011.90616991,0.00010471,2]
[335777808,1724488237722,-3006.44051846,0.00010471,2]
[335777809,1724488237733,-7442.804616,0.00010471,2]
[335777810,1724488237744,-1372.71685003,0.00010471,2]
[335777811,1724488237763,-1470.87908501,0.00010471,2]
[335777812,1724488237774,-3189.91088559,0.00010471,2]
[335777813,1724488237783,-5405.81377925,0.00010471,2]
[335777814,1724488237793,-150.0,0.00010504,2]
[335777815,1724488237802,-2330.14158828,0.00010566,2]
[335777816,1724488237811,-150.0,0.00010725,2]
[335777817,1724488237820,-150.0,0.00010727,2]
[335777818,1724488237829,-150.0,0.00010732,2]
[335777819,1724488237838,-2297.28,0.00010732,2]
[335777820,1724488237848,-1500.0,0.00010735,2]
[335777821,1724488237857,-150.0,0.00010762,2]
[335777822,1724488237867,-150.99,0.00010762,2]
[335777823,1724488237876,-150.99,0.00010762,2]
[335777824,1724488237886,-150.0,0.00010764,2]
[335777825,1724488237896,-499.99,0.00010764,2]
[335777826,1724488237905,-463.81,0.00010764,2]
[335777827,1724488237915,-2354.23,0.00010771,2]
[335777828,1724488237925,-150.0,0.00010774,2]
[335777829,1724488237935,-150.0,0.0001078,2]
[335777830,1724488237947,-204.18160294,0.00010782,2]
[335777831,1724488237957,-150.0,0.00010784,2]
[335777832,1724488237966,-150.0,0.00010788,2]
[335777833,1724488237976,-150.0,0.00010791,2]
[335777834,1724488237985,-4461.66214394,0.00010796,2]
[335777835,1724488237997,-4147.33785606,0.00010796,2]
[335777836,1724488238006,-1888.89105194,0.00010799,2]
[335777837,1724488238018,-1357.43390719,0.00010799,2]
[335777838,1724488238029,-503.8190057,0.00010799,2]
[335777839,1724488238041,-477.43802927,0.00010799,2]
[335777848,1724488238699,-914.76226927,0.00010799,2]
[335777855,1724488238761,-564.662132,0.00010799,2]
[335777857,1724488238773,-9571.39362899,0.00010799,2]
[335777859,1724488238788,-585.41820824,0.00010799,2]
[335777861,1724488238800,-394.12782113,0.00010799,2]
[335777863,1724488238811,-317.05925937,0.00010799,2]
[335777865,1724488238822,-561.17163043,0.00010799,2]
[335777867,1724488238832,-150.0,0.00010802,2]
[335777869,1724488238841,-150.0,0.00010805,2]
[335777871,1724488238850,-150.0,0.00010808,2]
[335777873,1724488238859,-150.0,0.00010816,2]
[335777874,1724488238868,-100.97635924,0.00010825,2]
[335777878,1724488238897,-49.02364076,0.00010825,2]
[335777880,1724488238906,-150.0,0.00010827,2]
[335777882,1724488238916,-150.0,0.00010829,2]
[335777884,1724488238925,-99.68388894,0.0001083,2]
[335777886,1724488238935,-292.20432703,0.0001083,2]
[335777888,1724488238945,-150.0,0.00010831,2]
[335777890,1724488238954,-150.0,0.0001084,2]
[335777892,1724488238963,-150.0,0.00010842,2]
[335777894,1724488238972,-150.0,0.00010851,2]
[335777896,1724488238982,-150.0,0.00010859,2]
[335777898,1724488238991,-131.78274111,0.00010861,2]
[335777901,1724488239003,-1737.07323016,0.00010861,2]
[335777903,1724488239012,-203.10130847,0.00010861,2]
[335777904,1724488239021,-150.0,0.00010867,2]
[335777906,1724488239030,-150.0,0.00010869,2]
[335777908,1724488239040,-150.0,0.00010872,2]
[335777910,1724488239049,-150.0,0.00010872,2]
[335777912,1724488239059,-150.0,0.00010878,2]
[335777914,1724488239068,-150.0,0.00010878,2]
[335777916,1724488239077,-510.95328959,0.00010879,2]
[335777919,1724488239089,-989.04671041,0.00010879,2]
[335777920,1724488239098,-150.0,0.0001088,2]
[335777922,1724488239107,-531.33260631,0.00010888,2]
[335777924,1724488239116,-150.21144724,0.00010889,2]
[335777926,1724488239126,-254.72034,0.0001089,2]
[335777928,1724488239135,-304.288953,0.0001089,2]
[335777930,1724488239144,-687.65858554,0.0001089,2]
[335777932,1724488239154,-155.0,0.0001089,2]
[335777934,1724488239163,-339.78,0.00010893,2]
[335777936,1724488239172,-254.62841478,0.00010898,2]
[335777938,1724488239183,-103.16521161,0.00010898,2]
[335777940,1724488239193,-3386.27557811,0.00010899,2]
[335777942,1724488239202,-1465.1925,0.00010899,2]
[335777944,1724488239211,-173.64546013,0.00010899,2]
[335777946,1724488239221,-2576.21972508,0.00010899,2]
[335777948,1724488239230,-215.87616342,0.00010899,2]
[335777950,1724488239239,-1500.0,0.000109,2]
[335777952,1724488239248,-150.0,0.000109,2]
[335777954,1724488239258,-150.0,0.000109,2]
[335777956,1724488239268,-326.28228056,0.000109,2]
[335777957,1724488239279,-150.0,0.00010913,2]
[335777959,1724488239290,-152.64908017,0.00010917,2]
[335777961,1724488239299,-150.0,0.0001092,2]
[335777963,1724488239308,-150.0,0.00010926,2]
[335777965,1724488239318,-150.0,0.00010928,2]
[335777967,1724488239328,-150.0,0.00010934,2]
[335777969,1724488239339,-150.0,0.00010935,2]
[335777971,1724488239350,-150.0,0.00010936,2]
[335777973,1724488239360,-150.0,0.00010937,2]
[335777975,1724488239370,-1474.09993246,0.00010938,2]
[335777977,1724488239383,-25.90006754,0.00010938,2]
[335777979,1724488239392,-150.0,0.00010939,2]
[335777982,1724488239403,-150.0,0.00010943,2]
[335777984,1724488239413,-150.0,0.00010945,2]
[335777985,1724488239422,-170.67,0.00010959,2]
[335777987,1724488239432,-250.0,0.00010959,2]
[335777989,1724488239441,-150.0,0.00010959,2]
[335777991,1724488239451,-150.0,0.00010959,2]
[335777993,1724488239459,-1051.68252581,0.0001096,2]
[335777995,1724488239471,-448.31747419,0.0001096,2]
[335777997,1724488239481,-150.0,0.0001096,2]
[335777999,1724488239491,-150.0,0.00010961,2]
[335778001,1724488239500,-150.0,0.00010965,2]
[335778003,1724488239510,-200.38227572,0.00010973,2]
[335778005,1724488239519,-200.0,0.00010973,2]
[335778007,1724488239528,-195.63260144,0.00010973,2]
[335778009,1724488239538,-150.0,0.00010977,2]
[335778011,1724488239547,-547.39285044,0.00010979,2]
[335778013,1724488239557,-314.52253714,0.0001098,2]
[335778015,1724488239566,-151.995,0.0001098,2]
[335778017,1724488239576,-150.0,0.00010981,2]
[335778019,1724488239586,-150.0,0.00010983,2]
[335778021,1724488239596,-150.0,0.00010984,2]
[335778023,1724488239605,-1159.51117032,0.00010988,2]
[335778025,1724488239615,-265.54939791,0.00010989,2]
[335778027,1724488239624,-155.43734409,0.00010989,2]
[335778029,1724488239633,-1159.51117032,0.0001099,2]
[335778031,1724488239643,-1159.51117032,0.0001099,2]
[335778033,1724488239652,-150.0,0.00010992,2]
[335778034,1724488239662,-1126.42597486,0.00010992,2]
[335778047,1724488239870,-2495.58714316,0.00010992,2]
[335778048,1724488239882,-3022.97891736,0.00010992,2]
[335778049,1724488239907,-695.95800116,0.00010992,2]
[335778050,1724488239918,-1176.19405725,0.00010992,2]
[335778051,1724488239929,-1335.0,0.00010992,2]
[335778052,1724488239941,-10657.55923951,0.00010992,2]
[335778053,1724488239950,-809.73572358,0.00010992,2]
[335778054,1724488239960,-4041.0586133,0.00010992,2]
[335778055,1724488239970,-9426.4253654,0.00010992,2]
[335778056,1724488239980,-1694.3323003,0.00010992,2]
[335778057,1724488239989,-211.8997555,0.00010992,2]
[335778058,1724488239998,-1049.64030745,0.00010993,2]
[335778059,1724488240007,-536.75723948,0.00010993,2]
[335778060,1724488240017,-348.18980877,0.00010993,2]
[335778061,1724488240026,-154.17063965,0.00010996,2]
[335778062,1724488240036,-500.0,0.00010997,2]
[335778063,1724488240045,-500.0,0.00010997,2]
[335778064,1724488240054,-500.0,0.00010997,2]
[335778065,1724488240063,-500.0,0.00010997,2]
[335778066,1724488240072,-500.0,0.00010997,2]
[335778067,1724488240081,-500.0,0.00010997,2]
[335778068,1724488240090,-586.63,0.00010997,2]
[335778069,1724488240099,-237.83945118,0.00010997,2]
[335778070,1724488240108,-500.0,0.00010997,2]
[335778071,1724488240117,-582.26,0.00010997,2]
[335778072,1724488240126,-500.0,0.00010997,2]
[335778073,1724488240135,-500.0,0.00010997,2]
[335778074,1724488240144,-500.0,0.00010997,2]
[335778075,1724488240153,-500.0,0.00010997,2]
[335778076,1724488240162,-500.0,0.00010997,2]
[335778077,1724488240171,-500.0,0.00010997,2]
[335778078,1724488240180,-500.0,0.00010997,2]
[335778079,1724488240189,-500.0,0.00010997,2]
[335778080,1724488240199,-500.0,0.00010997,2]
[335778081,1724488240207,-500.0,0.00010997,2]
[335778082,1724488240217,-500.0,0.00010997,2]
[335778083,1724488240226,-536.4,0.00010997,2]
[335778084,1724488240236,-500.0,0.00010997,2]
[335778085,1724488240245,-615.79,0.00010997,2]
[335778086,1724488240254,-500.0,0.00010997,2]
[335778087,1724488240263,-500.0,0.00010997,2]
[335778088,1724488240272,-500.0,0.00010997,2]
[335778089,1724488240282,-3666.04,0.00010997,2]
[335778090,1724488240291,-500.0,0.00010997,2]
[335778091,1724488240300,-500.0,0.00010997,2]
[335778092,1724488240309,-500.0,0.00010997,2]
[335778093,1724488240318,-500.0,0.00010997,2]
[335778094,1724488240327,-500.0,0.00010997,2]
[335778095,1724488240340,-500.0,0.00010997,2]
[335778096,1724488240349,-662.73,0.00010997,2]
[335778097,1724488240359,-500.0,0.00010997,2]
[335778098,1724488240368,-154.90003775,0.00010997,2]
[335778099,1724488240377,-1229.73,0.00010997,2]
[335778100,1724488240388,-500.0,0.00010997,2]
[335778101,1724488240398,-500.0,0.00010997,2]
[335778102,1724488240407,-500.0,0.00010997,2]
[335778105,1724488240421,-500.0,0.00010997,2]
[335778106,1724488240430,-779.87,0.00010997,2]
[335778108,1724488240439,-726.26,0.00010997,2]
[335778110,1724488240448,-576.11,0.00010997,2]
[335778112,1724488240458,-500.0,0.00010997,2]
[335778115,1724488240468,-500.0,0.00010997,2]
[335778117,1724488240478,-500.0,0.00010997,2]
[335778118,1724488240488,-160.4213192,0.00010997,2]
[335778120,1724488240500,-500.0,0.00010997,2]
[335778122,1724488240510,-1160.94,0.00010997,2]
[335778124,1724488240519,-827.89,0.00010997,2]
[335778126,1724488240528,-259.08592435,0.00010997,2]
[335778128,1724488240539,-500.0,0.00010997,2]
[335778130,1724488240550,-500.0,0.00010997,2]
[335778132,1724488240559,-500.0,0.00010997,2]
[335778134,1724488240568,-500.0,0.00010997,2]
[335778135,1724488240577,-500.0,0.00010997,2]
[335778137,1724488240585,-500.0,0.00010997,2]
[335778139,1724488240594,-500.0,0.00010997,2]
[335778141,1724488240603,-500.0,0.00010997,2]
[335778156,1724488240745,-500.0,0.00010997,2]
[335778158,1724488240759,-500.0,0.00010997,2]
[335778160,1724488240769,-604.23587182,0.00010997,2]
[335778162,1724488240778,-174.13248671,0.00010997,2]
[335778164,1724488240787,-798.79,0.00010997,2]
[335778165,1724488240796,-500.0,0.00010997,2]
[335778167,1724488240806,-500.0,0.00010997,2]
[335778169,1724488240815,-500.0,0.00010997,2]
[335778171,1724488240824,-500.0,0.00010997,2]
[335778173,1724488240833,-500.0,0.00010997,2]
[335778175,1724488240842,-500.0,0.00010997,2]
[335778177,1724488240851,-500.0,0.00010997,2]
[335778178,1724488240860,-500.0,0.00010997,2]
[335778180,1724488240869,-500.0,0.00010997,2]
[335778182,1724488240878,-500.0,0.00010997,2]
[335778184,1724488240888,-500.0,0.00010997,2]
[335778186,1724488240897,-500.0,0.00010997,2]
[335778188,1724488240906,-511.07,0.00010997,2]
[335778190,1724488240915,-500.0,0.00010997,2]
[335778192,1724488240923,-500.0,0.00010997,2]
[335778194,1724488240933,-159.18569794,0.00010997,2]
[335778196,1724488240942,-500.0,0.00010997,2]
[335778198,1724488240952,-500.0,0.00010997,2]
[335778200,1724488240961,-152.36692451,0.00010997,2]
[335778202,1724488240970,-500.0,0.00010997,2]
[335778204,1724488240979,-500.0,0.00010997,2]
[335778206,1724488240988,-308.3412793,0.00010997,2]
[335778208,1724488240997,-152.913888,0.00010998,2]
[335778210,1724488241006,-151.0,0.00010998,2]
[335778212,1724488241015,-151.81644682,0.00010998,2]
[335778214,1724488241026,-2463.35594438,0.00010998,2]
[335778216,1724488241037,-500.0,0.00010998,2]
[335778218,1724488241046,-500.0,0.00010998,2]
[335778220,1724488241055,-500.0,0.00010998,2]
[335778221,1724488241064,-500.0,0.00010998,2]
[335778223,1724488241073,-500.0,0.00010998,2]
[335778225,1724488241082,-500.0,0.00010998,2]
[335778227,1724488241093,-500.0,0.00010998,2]
[335778229,1724488241102,-500.0,0.00010998,2]
[335778231,1724488241111,-500.0,0.00010998,2]
[335778233,1724488241120,-500.0,0.00010998,2]
[335778235,1724488241129,-500.0,0.00010998,2]
[335778237,1724488241140,-500.0,0.00010998,2]
[335778240,1724488241150,-360.77,0.00010998,2]
[335778242,1724488241159,-500.0,0.00010998,2]
[335778244,1724488241168,-500.0,0.00010998,2]
[335778246,1724488241178,-500.0,0.00010998,2]
[335778247,1724488241187,-500.0,0.00010998,2]
[335778249,1724488241197,-500.0,0.00010998,2]
[335778251,1724488241206,-500.0,0.00010998,2]
[335778253,1724488241215,-500.0,0.00010998,2]
[335778255,1724488241224,-500.0,0.00010998,2]
[335778257,1724488241234,-500.0,0.00010998,2]
[335778259,1724488241243,-500.0,0.00010998,2]
[335778261,1724488241253,-500.0,0.00010998,2]
[335778263,1724488241263,-500.0,0.00010998,2]
[335778265,1724488241272,-500.0,0.00010998,2]
[335778267,1724488241281,-500.0,0.00010998,2]
[335778269,1724488241291,-500.0,0.00010998,2]
[335778271,1724488241301,-500.0,0.00010998,2]
[335778273,1724488241310,-500.0,0.00010998,2]
[335778275,1724488241320,-500.0,0.00010998,2]
[335778277,1724488241329,-500.0,0.00010998,2]
[335778279,1724488241341,-500.0,0.00010998,2]
[335778281,1724488241352,-500.0,0.00010998,2]
[335778283,1724488241362,-500.0,0.00010998,2]
[335778285,1724488241372,-504.45,0.00010998,2]
[335778287,1724488241381,-500.0,0.00010998,2]
[335778288,1724488241391,-500.0,0.00010998,2]
[335778290,1724488241401,-511.36137624,0.00010998,2]
[335778292,1724488241410,-500.0,0.00010998,2]
[335778294,1724488241421,-500.0,0.00010998,2]
[335778296,1724488241431,-500.0,0.00010998,2]
[335778298,1724488241441,-500.0,0.00010998,2]
[335778300,1724488241450,-513.34298267,0.00010998,2]
[335778302,1724488241459,-500.0,0.00010998,2]
[335778304,1724488241468,-500.0,0.00010998,2]
[335778306,1724488241477,-500.0,0.00010998,2]
[335778308,1724488241487,-500.0,0.00010998,2]
[335778310,1724488241496,-500.0,0.00010998,2]
[335778312,1724488241506,-328.08077302,0.00010998,2]
[335778314,1724488241515,-533.90123367,0.00010998,2]
[335778316,1724488241525,-172.240836,0.00010998,2]
[335778318,1724488241534,-172.240836,0.00010998,2]
[335778320,1724488241543,-263.101558,0.00010998,2]
[335778322,1724488241552,-255.82537,0.00010998,2]
[335778324,1724488241561,-263.101558,0.00010998,2]
[335778326,1724488241571,-255.82537,0.00010998,2]
[335778327,1724488241580,-586.63,0.00010998,2]
[335778329,1724488241589,-586.63,0.00010998,2]
[335778331,1724488241598,-586.63,0.00010998,2]
[335778333,1724488241608,-586.63,0.00010998,2]
[335778335,1724488241617,-586.63,0.00010998,2]
[335778337,1724488241626,-151.0,0.00010998,2]
[335778339,1724488241634,-151.0,0.00010998,2]
[335778341,1724488241644,-500.0,0.00010998,2]
[335778342,1724488241653,-500.0,0.00010998,2]
[335778344,1724488241662,-500.0,0.00010998,2]
[335778346,1724488241671,-500.0,0.00010998,2]
[335778348,1724488241681,-500.0,0.00010998,2]
[335778350,1724488241690,-582.26,0.00010998,2]
[335778352,1724488241701,-582.26,0.00010998,2]
[335778354,1724488241711,-582.26,0.00010998,2]
[335778356,1724488241720,-151.0,0.00010998,2]
[335778358,1724488241730,-582.26,0.00010998,2]
[335778360,1724488241739,-582.26,0.00010998,2]
[335778362,1724488241748,-500.0,0.00010998,2]
[335778364,1724488241757,-500.0,0.00010998,2]
[335778366,1724488241766,-500.0,0.00010998,2]
[335778368,1724488241775,-319.03068259,0.00010998,2]
[335778370,1724488241785,-151.0,0.00010998,2]
[335778372,1724488241795,-151.0,0.00010998,2]
[335778374,1724488241804,-151.0,0.00010998,2]
[335778376,1724488241813,-151.0,0.00010998,2]
[335778378,1724488241822,-151.0,0.00010998,2]
[335778380,1724488241831,-151.0,0.00010998,2]
[335778382,1724488241840,-151.0,0.00010998,2]
[335778384,1724488241849,-355.305859,0.00010998,2]
[335778386,1724488241858,-2607.502099,0.00010998,2]
[335778387,1724488241867,-2607.502099,0.00010998,2]
[335778389,1724488241876,-355.305859,0.00010998,2]
[335778391,1724488241885,-429.645657,0.00010998,2]
[335778393,1724488241894,-2607.502099,0.00010998,2]
[335778395,1724488241903,-429.645657,0.00010998,2]
[335778397,1724488241912,-2607.502099,0.00010998,2]
[335778399,1724488241921,-151.0,0.00010998,2]
[335778401,1724488241930,-429.645657,0.00010998,2]
[335778403,1724488241939,-500.0,0.00010998,2]
[335778405,1724488241948,-429.645657,0.00010998,2]
[335778407,1724488241957,-500.0,0.00010998,2]
[335778409,1724488241966,-500.0,0.00010998,2]
[335778411,1724488241975,-500.0,0.00010998,2]
[335778413,1724488241984,-758.757674,0.00010998,2]
[335778415,1724488241993,-758.757674,0.00010998,2]
[335778416,1724488242002,-500.0,0.00010998,2]
[335778418,1724488242011,-500.0,0.00010998,2]
[335778420,1724488242021,-500.0,0.00010998,2]
[335778422,1724488242030,-500.0,0.00010998,2]
[335778425,1724488242040,-500.0,0.00010998,2]
[335778426,1724488242049,-758.757674,0.00010998,2]
[335778428,1724488242058,-758.757674,0.00010998,2]
[335778430,1724488242067,-218.159012,0.00010998,2]
[335778432,1724488242077,-262.404125,0.00010998,2]
[335778434,1724488242087,-262.404125,0.00010998,2]
[335778436,1724488242095,-262.404125,0.00010998,2]
[335778438,1724488242105,-2982.094999,0.00010998,2]
[335778440,1724488242113,-2982.094999,0.00010998,2]
[335778442,1724488242123,-262.404125,0.00010998,2]
[335778444,1724488242133,-262.404125,0.00010998,2]
[335778445,1724488242142,-262.404125,0.00010998,2]
[335778447,1724488242151,-500.0,0.00010998,2]
[335778449,1724488242160,-2982.094999,0.00010998,2]
[335778451,1724488242168,-500.0,0.00010998,2]
[335778453,1724488242178,-2982.094999,0.00010998,2]
[335778455,1724488242188,-500.0,0.00010998,2]
[335778457,1724488242197,-312.32013917,0.00010998,2]
[335778459,1724488242206,-151.0,0.00010998,2]
[335778461,1724488242215,-151.0,0.00010998,2]
[335778463,1724488242224,-151.0,0.00010998,2]
[335778465,1724488242234,-500.0,0.00010998,2]
[335778467,1724488242243,-500.0,0.00010998,2]
[335778469,1724488242252,-563.76123811,0.00010998,2]
[335778471,1724488242262,-500.0,0.00010998,2]
[335778473,1724488242271,-500.0,0.00010998,2]
[335778475,1724488242280,-500.0,0.00010998,2]
[335778477,1724488242290,-500.0,0.00010998,2]
[335778479,1724488242299,-500.0,0.00010998,2]
[335778481,1724488242307,-500.0,0.00010998,2]
[335778483,1724488242316,-500.0,0.00010998,2]
[335778485,1724488242325,-500.0,0.00010998,2]
[335778486,1724488242337,-500.0,0.00010998,2]
[335778488,1724488242350,-573.26,0.00010998,2]
[335778490,1724488242360,-151.0,0.00010998,2]
[335778492,1724488242368,-151.0,0.00010998,2]
[335778494,1724488242377,-151.0,0.00010998,2]
[335778496,1724488242389,-500.0,0.00010998,2]
[335778498,1724488242399,-500.0,0.00010998,2]
[335778500,1724488242408,-500.0,0.00010998,2]
[335778503,1724488242419,-500.0,0.00010998,2]
[335778506,1724488242428,-500.0,0.00010998,2]
[335778508,1724488242438,-500.0,0.00010998,2]
[335778510,1724488242448,-500.0,0.00010998,2]
[335778512,1724488242456,-500.0,0.00010998,2]
[335778514,1724488242466,-500.0,0.00010998,2]
[335778516,1724488242475,-500.0,0.00010998,2]
[335778518,1724488242484,-229.857182,0.00010998,2]
[335778520,1724488242494,-229.857182,0.00010998,2]
[335778522,1724488242502,-500.0,0.00010998,2]
[335778523,1724488242511,-229.857182,0.00010998,2]
[335778526,1724488242521,-500.0,0.00010998,2]
[335778527,1724488242530,-500.0,0.00010998,2]
[335778529,1724488242541,-500.0,0.00010998,2]
[335778531,1724488242550,-607.51,0.00010998,2]
[335778533,1724488242559,-229.857182,0.00010998,2]
[335778535,1724488242569,-229.857182,0.00010998,2]
[335778538,1724488242579,-229.857182,0.00010998,2]
[335778539,1724488242589,-175.589463,0.00010998,2]
[335778542,1724488242598,-175.589463,0.00010998,2]
[335778545,1724488242607,-175.589463,0.00010998,2]
[335778548,1724488242617,-175.589463,0.00010998,2]
[335778551,1724488242626,-175.589463,0.00010998,2]
[335778554,1724488242636,-175.589463,0.00010998,2]
[335778557,1724488242645,-317.20696146,0.00010998,2]
[335778560,1724488242654,-151.0,0.00010998,2]
[335778563,1724488242663,-151.0,0.00010998,2]
[335778566,1724488242672,-151.0,0.00010998,2]
[335778569,1724488242681,-151.0,0.00010998,2]
[335778571,1724488242691,-227.976347,0.00010998,2]
[335778573,1724488242700,-151.0,0.00010998,2]
[335778575,1724488242709,-151.0,0.00010998,2]
[335778577,1724488242718,-151.0,0.00010998,2]
[335778579,1724488242727,-151.0,0.00010998,2]
[335778581,1724488242736,-151.0,0.00010998,2]
[335778583,1724488242746,-151.0,0.00010998,2]
[335778585,1724488242755,-151.0,0.00010998,2]
[335778587,1724488242765,-153.553137,0.00010998,2]
[335778589,1724488242773,-628.50227,0.00010998,2]
[335778590,1724488242784,-628.50227,0.00010998,2]
[335778591,1724488242794,-628.50227,0.00010998,2]
[335778592,1724488242803,-628.50227,0.00010998,2]
[335778593,1724488242814,-628.50227,0.00010998,2]
[335778594,1724488242825,-628.50227,0.00010998,2]
[335778595,1724488242835,-151.0,0.00010998,2]
[335778596,1724488242844,-151.639532,0.00010998,2]
[335778597,1724488242854,-151.0,0.00010998,2]
[335778598,1724488242865,-151.651165,0.00010998,2]
[335778599,1724488242874,-151.0,0.00010998,2]
[335778600,1724488242883,-10000.0,0.00010998,2]
[335778601,1724488242893,-536.4,0.00010998,2]
[335778602,1724488242903,-8682.88627923,0.00010998,2]
[335778618,1724488243126,-1317.11372077,0.00010998,2]
[335778620,1724488243135,-536.4,0.00010998,2]
[335778622,1724488243146,-10000.0,0.00010998,2]
[335778624,1724488243155,-536.4,0.00010998,2]
[335778626,1724488243164,-536.4,0.00010998,2]
[335778628,1724488243173,-536.4,0.00010998,2]
[335778630,1724488243182,-10000.0,0.00010998,2]
[335778633,1724488243191,-10000.0,0.00010998,2]
[335778636,1724488243201,-500.0,0.00010998,2]
[335778638,1724488243210,-500.0,0.00010998,2]
[335778641,1724488243220,-10000.0,0.00010998,2]
[335778644,1724488243230,-500.0,0.00010998,2]
[335778647,1724488243239,-500.0,0.00010998,2]
[335778649,1724488243247,-500.0,0.00010998,2]
[335778651,1724488243256,-10000.0,0.00010998,2]
[335778653,1724488243265,-2441.67437536,0.00010998,2]
[335778655,1724488243277,-7558.32562464,0.00010998,2]
[335778657,1724488243286,-10000.0,0.00010998,2]
[335778659,1724488243295,-615.79,0.00010998,2]
[335778661,1724488243305,-615.79,0.00010998,2]
[335778663,1724488243314,-615.79,0.00010998,2]
[335778665,1724488243324,-615.79,0.00010998,2]
[335778667,1724488243334,-615.79,0.00010998,2]
[335778669,1724488243347,-10000.0,0.00010998,2]
[335778671,1724488243356,-10000.0,0.00010998,2]
[335778673,1724488243365,-2081.00896214,0.00010998,2]
[335778675,1724488243377,-288.82,0.00010998,2]